bitfinex-derivatives/quotes_SOLF0:USTF0_20250923
["timestamp","ask_amount","ask_price","bid_price","bid_amount"]
[1758590378330,8.85241424,218.66,218.62,7.19]
[1758590378530,8.85241424,218.66,218.63,113.26]
[1758590378828,8.85241424,218.66,218.62,7.19]
[1758590379028,8.85241424,218.66,218.63,113.24]
[1758590379926,8.85241424,218.66,218.63,113.22]
[1758590380320,8.85241424,218.66,218.63,120.41]
[1758590380721,1.44241424,218.66,218.56,8.63241424]
[1758590381128,1.44241424,218.66,218.58,7.19]
[1758590381723,1.44241424,218.66,218.59,96.28]
[1758590385731,1.44241424,218.66,218.52,13.48867297]
[1758590385732,1.44241424,218.61,218.52,7.19]
[1758590385922,1.44241424,218.61,218.53,113.14]
[1758590386128,1.44241424,218.61,218.54,7.19]
[1758590386438,7.41,218.62,218.54,7.19]
[1758590386644,1.44241424,218.6,218.54,7.19]
[1758590387133,8.85241424,218.6,218.56,7.19]
[1758590388037,1.44241424,218.59,218.56,7.19]
[1758590388531,8.85241424,218.59,218.56,7.19]
[1758590388729,8.85241424,218.59,218.55,7.19]
[1758590388941,4.1133,218.61,218.54,113.1]
[1758590389138,1.44241424,218.6,218.54,120.29]
[1758590390440,1.44241424,218.6,218.54,120.27]
[1758590390631,1.44241424,218.6,218.54,7.19]
[1758590390937,1.44241424,218.58,218.53,7.19]
[1758590391134,1.44241424,218.56,218.48,7.19]
[1758590391333,1.44241424,218.58,218.5,7.19]
[1758590393637,1.44241424,218.58,218.51,94.54]
[1758590393946,7.41,218.68,218.56,1.44241424]
[1758590394139,4.55843742,218.67,218.57,120.19]
[1758590394441,3.11602318,218.66,218.57,120.19]
[1758590394836,7.22842318,218.66,218.57,120.19]
[1758590395137,3.11602318,218.65,218.57,120.19]
[1758590395338,4.1124,218.66,218.58,7.19]
[1758590395529,1.44241424,218.67,218.58,8.63241424]
[1758590396135,1.44241424,218.67,218.6,7.19]
[1758590396330,3.12066952,218.66,218.6,7.19]
[1758590396535,11.522,218.68,218.6,7.19]
[1758590396738,3.12076677,218.67,218.6,8.63241424]
[1758590396940,7.41,218.72,218.6,5.55571424]
[1758590396941,1.44241424,218.71,218.6,5.55571424]
[1758590397141,3.12099762,218.7,218.61,7.19]
[1758590397442,3.12099762,218.69,218.61,7.19]
[1758590397644,1.44241424,218.71,218.61,7.19]
[1758590397843,3.12317351,218.7,218.63,7.19]
[1758590398138,3.12317351,218.69,218.66,7.19]
[1758590398345,5.02471897,218.77,218.66,7.19]
[1758590398346,5.55331424,218.74,218.66,7.19]
[1758590398535,3.12582619,218.73,218.66,7.19]
[1758590398732,3.12582619,218.72,218.66,7.19]
[1758590398941,3.12582619,218.71,218.66,7.19]
[1758590399237,7.41,218.69,218.63,113.04]
[1758590399444,3.12582619,218.68,218.65,7.19]
[1758590400140,3.12582619,218.68,218.63,113.04]
[1758590400343,11.4817,218.7,218.63,7.22]
[1758590400542,3.13061179,218.69,218.63,120.28]
[1758590400739,3.13061179,218.68,218.64,7.22]
[1758590400934,3.13061179,218.67,218.64,7.22]
[1758590401242,4.111,218.73,218.64,8.66241424]
[1758590401450,4.111,218.73,218.66,1.44241424]
[1758590401451,3.13037373,218.72,218.66,1.44241424]
[1758590401642,3.13037373,218.71,218.67,7.22]
[1758590401947,3.13037373,218.7,218.67,7.22]
[1758590402141,3.13037373,218.69,218.67,7.22]
[1758590402345,3.13037373,218.68,218.64,1.44241424]
[1758590402544,3.13037373,218.67,218.64,18.26241424]
[1758590402748,3.13037373,218.66,218.65,7.22]
[1758590403339,14.61217373,218.69,218.65,7.22]
[1758590403543,3.13037373,218.68,218.66,7.22]
[1758590404141,3.13037373,218.68,218.64,1.44241424]
[1758590404343,3.13037373,218.68,218.65,7.22]
[1758590404542,3.13037373,218.68,218.67,7.22]
[1758590404846,3.13037373,218.72,218.67,7.22]
[1758590405042,3.13037373,218.71,218.69,7.22]
[1758590405246,3.13037373,218.7,218.69,7.22]
[1758590405644,3.13037373,218.72,218.69,7.22]
[1758590405852,3.13037373,218.71,218.69,7.22]
[1758590406149,7.53707845,218.76,218.69,7.22]
[1758590406150,3.13037373,218.7,218.69,7.22]
[1758590406354,1.44241424,218.78,218.71,7.22]
[1758590406355,3.14944825,218.73,218.71,7.22]
[1758590406550,5.02471897,218.76,218.74,7.22]
[1758590406757,3.14961724,218.75,218.74,7.22]
[1758590407446,3.14961724,218.75,218.72,7.22]
[1758590407650,3.14961724,218.74,218.72,7.22]
[1758590407851,3.14961724,218.73,218.72,7.22]
[1758590408046,10.51961724,218.76,218.72,7.22]
[1758590408249,3.14961724,218.75,218.72,7.22]
[1758590408447,3.14961724,218.74,218.67,1.44241424]
[1758590408644,3.14961724,218.73,218.67,1.44241424]
[1758590408854,3.14961724,218.72,218.68,7.22]
[1758590409049,3.14961724,218.71,218.68,7.22]
[1758590409249,3.14961724,218.7,218.68,7.22]
[1758590409450,3.14961724,218.69,218.68,7.22]
[1758590409755,3.14961724,218.72,218.68,7.22]
[1758590409954,3.14961724,218.71,218.68,7.22]
[1758590410160,3.14961724,218.7,218.68,7.22]
[1758590410460,3.14961724,218.69,218.66,7.22]
[1758590410654,3.14961724,218.68,218.66,7.22]
[1758590410855,3.14961724,218.67,218.66,7.22]
[1758590411048,7.37,218.7,218.66,7.22]
[1758590411244,3.14961724,218.69,218.66,7.22]
[1758590411654,3.14961724,218.69,218.64,7.22]
[1758590411959,3.14961724,218.68,218.64,7.22]
[1758590412158,3.14961724,218.67,218.64,7.22]
[1758590412357,3.14961724,218.66,218.64,7.22]
[1758590412554,3.14961724,218.65,218.64,7.22]
[1758590412753,3.14961724,218.65,218.64,120.08]
[1758590412956,3.14961724,218.71,218.64,120.08]
[1758590413158,8.81241424,218.72,218.64,7.22]
[1758590413159,3.14961724,218.7,218.64,7.22]
[1758590413457,3.14961724,218.69,218.63,7.22]
[1758590413660,3.14961724,218.68,218.62,38.0]
[1758590413851,3.14961724,218.67,218.62,38.0]
[1758590414047,3.14961724,218.66,218.63,7.22]
[1758590414251,3.14961724,218.65,218.62,38.0]
[1758590414452,3.14961724,218.64,218.63,7.22]
[1758590417659,7.68,218.7,218.63,8.66241424]
[1758590417865,3.12538921,218.69,218.65,1.44241424]
[1758590418056,3.12538921,218.68,218.65,1.44241424]
[1758590418253,3.12538921,218.67,218.66,7.2]
[1758590418458,3.12538921,218.73,218.66,7.2]
[1758590418764,3.12538921,218.72,218.66,7.2]
[1758590418967,3.12538921,218.71,218.63,7.2]
[1758590419168,3.12538921,218.7,218.66,7.2]
[1758590419460,3.12538921,218.69,218.65,2.25756534]
[1758590419660,3.12538921,218.69,218.61,159.3628]
[1758590419661,7.68,218.74,218.64,7.2]
[1758590419866,3.12551661,218.73,218.64,7.2]
[1758590420061,7.68,218.74,218.64,11.3126]
[1758590420062,3.12551661,218.72,218.64,11.3126]
[1758590420254,7.68,218.74,218.64,11.3126]
[1758590420255,3.12551661,218.71,218.64,11.3126]
[1758590420457,3.12551661,218.7,218.64,11.3126]
[1758590420661,3.12551661,218.69,218.64,4.1126]
[1758590420861,7.68,218.74,218.65,7.2]
[1758590421057,3.12620969,218.73,218.65,7.2]
[1758590421265,3.12620969,218.72,218.65,7.2]
[1758590421464,3.12620969,218.71,218.65,7.2]
[1758590421765,3.12620969,218.7,218.64,4.1126]
[1758590421969,3.12620969,218.69,218.65,7.2]
[1758590422154,7.68,218.74,218.65,7.2]
[1758590422354,3.13119749,218.73,218.65,7.2]
[1758590422560,3.13119749,218.72,218.66,44.12]
[1758590422760,3.13119749,218.71,218.67,7.2]
[1758590422960,3.13119749,218.7,218.67,7.2]
[1758590423165,3.13119749,218.69,218.66,44.12]
[1758590423361,3.13119749,218.68,218.67,7.2]
[1758590423668,7.68,218.74,218.67,7.2]
[1758590423973,3.13171645,218.73,218.67,7.2]
[1758590424161,3.13171645,218.72,218.67,7.2]
[1758590424358,3.13139238,218.71,218.68,7.2]
[1758590424558,7.68,218.78,218.68,7.2]
[1758590424865,3.1313578,218.77,218.68,7.2]
[1758590425169,3.1313578,218.76,218.7,7.2]
[1758590425362,3.1313578,218.75,218.7,7.2]
[1758590425567,3.1313578,218.74,218.7,112.86]
[1758590425768,3.13085268,218.73,218.69,112.86]
[1758590425966,7.68,218.78,218.7,7.2]
[1758590426268,3.13083085,218.77,218.7,7.2]
[1758590426468,7.68,218.78,218.7,7.2]
[1758590426469,3.13083085,218.76,218.7,7.2]
[1758590426669,3.13083085,218.75,218.7,7.2]
[1758590426872,3.13083085,218.74,218.69,112.86]
[1758590427071,7.68,218.78,218.7,7.2]
[1758590427267,3.12975561,218.77,218.7,7.2]
[1758590427470,3.12975561,218.76,218.7,7.2]
[1758590427673,7.68,218.78,218.7,7.2]
[1758590427674,3.12975561,218.75,218.7,7.2]
[1758590427968,3.12975561,218.74,218.69,112.86]
[1758590428173,7.68,218.78,218.7,7.2]
[1758590428474,3.12942731,218.77,218.7,7.2]
[1758590428674,3.12942731,218.76,218.7,7.2]
[1758590428875,3.12942731,218.75,218.69,7.2]
[1758590429074,3.12942731,218.74,218.69,7.2]
[1758590429368,3.12942731,218.73,218.69,7.2]
[1758590429567,3.12942731,218.72,218.68,23.22]
[1758590429773,7.68,218.77,218.69,7.2]
[1758590429967,3.12754382,218.76,218.69,7.2]
[1758590430172,3.12754382,218.75,218.69,7.2]
[1758590430477,10.22754382,218.74,218.68,30.33]
[1758590430673,10.22754382,218.73,218.62,7.11]
[1758590430868,3.12754382,218.72,218.63,112.2528]
[1758590431070,3.12754382,218.71,218.64,7.11]
[1758590431371,7.1,218.77,218.65,7.11]
[1758590431574,3.12632322,218.76,218.65,7.11]
[1758590431778,3.12632322,218.75,218.66,52.78]
[1758590431978,3.12632322,218.74,218.66,52.78]
[1758590432176,3.12632322,218.73,218.67,7.11]
[1758590432374,3.12632322,218.72,218.68,7.11]
[1758590432570,7.1,218.77,218.68,7.11]
[1758590432873,3.1268711,218.76,218.69,112.84]
[1758590433079,3.1268711,218.75,218.69,112.84]
[1758590433378,3.1268711,218.74,218.65,7.11]
[1758590433579,3.1268711,218.73,218.67,7.11]
[1758590433778,3.1268711,218.72,218.66,99.88]
[1758590433981,4.1104,218.76,218.67,7.11]
[1758590434276,3.12747869,218.75,218.67,7.11]
[1758590434484,3.12747869,218.74,218.67,7.11]
[1758590434673,3.12747869,218.73,218.67,7.11]
[1758590434873,3.12747869,218.72,218.67,7.11]
[1758590435173,7.1,218.77,218.67,7.11]
[1758590435380,7.1,218.77,218.69,7.11]
[1758590435381,3.12803528,218.76,218.69,7.11]
[1758590435574,3.12803528,218.75,218.71,7.11]
[1758590435875,3.12803528,218.74,218.73,7.11]
[1758590436171,7.1,218.8,218.73,119.95]
[1758590436373,7.1,218.75,218.65,7.11]
[1758590436580,7.1,218.73,218.65,7.11]
[1758590436877,7.1,218.71,218.65,7.11]
[1758590437076,7.1,218.69,218.65,7.11]
[1758590437278,3.12803528,218.68,218.65,7.11]
[1758590437680,7.1,218.75,218.65,7.11]
[1758590437882,3.13239239,218.74,218.66,112.82]
[1758590438082,3.13239239,218.73,218.66,112.82]
[1758590438283,3.13239239,218.72,218.66,112.82]
[1758590438476,3.13239239,218.71,218.66,112.82]
[1758590438676,3.13239239,218.7,218.67,7.11]
[1758590438877,3.13239239,218.69,218.67,7.11]
[1758590439077,3.13239239,218.68,218.67,7.11]
[1758590439383,3.13239239,218.73,218.67,7.11]
[1758590439875,14.34349239,218.72,218.63,7.11]
[1758590440072,3.13239239,218.71,218.64,112.86]
[1758590440473,3.13239239,218.7,218.64,112.86]
[1758590440775,3.13239239,218.69,218.63,119.97]
[1758590441875,3.13239239,218.68,218.64,7.11]
[1758590442069,7.1,218.72,218.64,7.11]
[1758590442070,3.13239239,218.67,218.64,7.11]
[1758590442381,3.13239239,218.66,218.64,7.11]
[1758590442675,3.13239239,218.65,218.57,409.6148]
[1758590442876,3.13239239,218.64,218.59,7.11]
[1758590443071,7.1,218.68,218.59,7.11]
[1758590443280,3.13769873,218.67,218.59,7.11]
[1758590443476,3.13769873,218.66,218.59,7.11]
[1758590443677,3.13769873,218.65,218.59,7.11]
[1758590443884,3.13769873,218.64,218.61,4.1131]
[1758590444082,7.1,218.68,218.61,11.2231]
[1758590444277,3.13767767,218.67,218.61,11.2231]
[1758590444479,3.13767767,218.66,218.64,7.11]
[1758590444779,3.13767767,218.65,218.64,119.95]
[1758590445085,3.13767767,218.67,218.64,119.95]
[1758590445374,3.13767767,218.66,218.64,119.95]
[1758590445582,3.13767767,218.65,218.64,119.95]
[1758590445979,3.13767767,218.69,218.64,119.95]
[1758590446175,10.23767767,218.68,218.64,119.95]
[1758590446483,3.13767767,218.67,218.64,7.11]
[1758590446682,3.13767767,218.67,218.64,119.95]
[1758590447982,10.23767767,218.67,218.65,112.84]
[1758590448184,3.13767767,218.66,218.65,112.84]
[1758590450682,3.13767767,218.66,218.65,119.95]
[1758590450883,3.13896219,218.7,218.65,112.84]
[1758590451476,3.13896219,218.7,218.66,7.11]
[1758590452590,3.13896219,218.7,218.65,116.9524]
[1758590452779,3.13896219,218.7,218.66,7.11]
[1758590453286,3.13896219,218.7,218.65,116.9524]
[1758590453488,3.13896219,218.7,218.66,7.11]
[1758590453891,3.13896219,218.7,218.65,116.9524]
[1758590454089,3.13896219,218.7,218.66,7.11]
[1758590454481,3.13896219,218.7,218.65,116.9524]
[1758590454690,3.13896219,218.7,218.68,7.11]
[1758590454991,5.02471897,218.77,218.7,7.11]
[1758590455182,3.13491187,218.76,218.7,7.11]
[1758590455377,3.13491187,218.75,218.69,7.11]
[1758590455584,7.1,218.73,218.7,23.75]
[1758590455785,3.13491187,218.72,218.7,16.64]
[1758590455990,3.13491187,218.71,218.7,16.64]
[1758590456687,3.13491187,218.71,218.7,23.75]
[1758590457491,3.13491187,218.71,218.7,119.95]
[1758590457687,3.13491187,218.71,218.7,112.84]
[1758590458690,3.13491187,218.71,218.67,7.11]
[1758590458985,7.1,218.75,218.7,112.84]
[1758590459191,3.1351448,218.74,218.7,112.84]
[1758590459393,3.1351448,218.73,218.7,112.84]
[1758590459688,3.1351448,218.72,218.7,119.95]
[1758590459889,3.1351448,218.71,218.7,119.95]
[1758590462987,3.1351448,218.71,218.7,119.93]
[1758590463184,3.1351448,218.71,218.7,120.39]
[1758590465193,12.69471897,218.79,218.7,124.5015]
[1758590465394,3.13882718,218.78,218.7,124.0415]
[1758590465593,3.13882718,218.77,218.71,7.2]
[1758590465892,3.13882718,218.76,218.75,7.2]
[1758590466195,5.02471897,218.88,218.79,63.931]
[1758590466387,5.02471897,218.92,218.82,7.2]
[1758590466587,7.67,218.93,218.82,7.2]
[1758590466987,7.67,218.93,218.81,66.18216534]
[1758590466988,7.67,218.93,218.85,7.2]
[1758590467187,7.28228431,218.98,218.86,112.82]
[1758590467387,7.67,218.97,218.87,7.2]
[1758590468096,7.67,218.97,218.87,11.3082]
[1758590468498,5.02471897,219.02,218.87,11.3082]
[1758590468499,7.67,219.02,218.88,7.2]
[1758590469193,11.7755,219.02,218.89,4.1079]
[1758590469398,11.7755,219.02,218.9,120.0]
[1758590469798,11.7755,219.02,218.91,7.2]
[1758590470296,7.67,219.02,218.91,7.2]
[1758590471597,7.67,219.02,218.92,112.78]
[1758590472295,7.67,219.02,218.93,112.76]
[1758590473001,7.67,219.02,218.94,7.2]
[1758590475998,7.67,219.08,218.97,7.2]
[1758590476602,7.67,219.08,218.99,2.25756534]
[1758590476799,7.67,219.08,219.0,77.29]
[1758590477193,7.58,219.12,219.01,7.17]
[1758590478193,4.1038,219.11,219.01,7.17]
[1758590478395,7.58,219.1,219.02,112.72]
[1758590480104,7.58,219.1,219.01,7.17]
[1758590480294,7.58,219.1,219.02,112.7]
[1758590480695,7.58,219.1,219.02,114.13995948]
[1758590481100,7.58,219.1,219.03,7.17]
[1758590481301,1.43995948,219.13,219.04,1.43995948]
[1758590481698,1.43995948,219.13,219.05,7.17]
[1758590481906,11.6833,219.14,219.05,7.17]
[1758590482106,7.58,219.14,219.06,1.43995948]
[1758590485301,7.58,219.14,219.07,112.66]
[1758590488606,7.58,219.12,219.05,7.17]
[1758590488902,7.58,219.12,219.05,119.81]
[1758590489105,7.58,219.12,219.05,7.17]
[1758590489307,4.1038,219.11,219.05,7.17]
[1758590490111,5.54375948,219.11,218.97,4.1063]
[1758590490305,7.58,219.1,219.01,8.60995948]
[1758590490705,7.58,219.1,219.01,7.17]
[1758590490906,7.58,219.1,219.01,119.81]
[1758590491106,1.43995948,219.09,219.01,119.81]
[1758590491705,7.58,219.1,219.02,1.43995948]
[1758590492906,7.58,219.1,219.02,114.07995948]
[1758590493110,7.58,219.1,219.03,6.96]
[1758590496816,7.08,219.06,218.98,6.96]
[1758590497017,1.43995948,219.07,219.0,6.96]
[1758590497314,1.43995948,219.07,219.0,119.58]
[1758590498026,7.08,219.09,219.0,119.58]
[1758590498224,1.43995948,219.07,219.0,119.58]
[1758590500023,7.08,219.09,219.0,119.58]
[1758590500225,8.51995948,219.09,219.0,121.01995948]
[1758590503123,8.51995948,219.09,219.0,8.39995948]
[1758590503323,8.51995948,219.09,219.01,112.62]
[1758590504230,12.62415948,219.09,219.01,112.62]
[1758590506733,4.1046,219.07,219.01,112.62]
[1758590507232,4.1044,219.08,219.01,112.62]
[1758590509526,4.1044,219.08,219.02,6.96]
[1758590511433,4.1044,219.08,219.03,1.43995948]
[1758590511730,5.02471897,219.1,219.03,1.43995948]
[1758590511928,4.1039,219.11,219.06,6.96]
[1758590512129,7.08,219.12,219.06,6.96]
[1758590512329,11.1837,219.12,219.06,6.96]
[1758590514829,4.104,219.1,219.06,6.96]
[1758590515135,4.104,219.1,219.03,1.43995948]
[1758590515136,4.104,219.1,219.05,6.96]
[1758590515333,4.104,219.1,219.04,114.03995948]
[1758590515536,4.104,219.1,219.05,6.96]
[1758590516131,4.104,219.1,219.04,114.03995948]
[1758590516733,4.104,219.1,219.05,6.96]
[1758590516938,4.104,219.1,219.04,114.03995948]
[1758590517239,4.104,219.1,219.05,6.96]
[1758590517437,4.104,219.1,219.04,114.03995948]
[1758590517638,4.104,219.1,219.05,6.96]
[1758590518243,4.104,219.1,219.04,114.03995948]
[1758590518643,4.104,219.1,219.05,6.96]
[1758590518838,4.104,219.1,219.04,114.03995948]
[1758590520044,4.104,219.1,219.05,6.96]
[1758590520241,4.104,219.1,219.04,114.03995948]
[1758590520641,4.1044,219.08,219.05,7.18]
[1758590520948,70.30037845,219.12,219.01,39.88]
[1758590520949,7.46,219.07,219.01,39.88]
[1758590521242,7.46,219.07,219.01,47.06]
[1758590521439,12.48471897,219.11,219.03,7.18]
[1758590521644,7.46,219.11,219.03,7.18]
[1758590521841,4.1044,219.09,219.03,7.18]
[1758590522846,4.1045,219.08,219.03,7.18]
[1758590523047,4.1045,219.08,219.02,8.61995948]
[1758590524249,7.46,219.12,219.05,1.43995948]
[1758590524450,5.02471897,219.15,219.08,7.18]
[1758590524742,4.1031,219.15,219.09,1.43995948]
[1758590524943,7.46,219.16,219.1,7.18]
[1758590525146,5.02471897,219.18,219.11,8.61995948]
[1758590526147,12.48471897,219.19,219.11,8.61995948]
[1758590526351,12.48471897,219.19,219.13,1.43995948]
[1758590526646,4.1022,219.2,219.16,7.18]
[1758590526846,4.1022,219.2,219.07,13.90767996]
[1758590527041,7.46,219.19,219.09,7.18]
[1758590527246,4.1025,219.18,219.11,1.43995948]
[1758590527745,4.1029,219.16,219.09,7.18]
[1758590527950,7.46,219.17,219.1,1.43995948]
[1758590528247,7.46,219.17,219.11,7.18]
[1758590528546,11.5627,219.17,219.11,7.18]
[1758590529344,4.1022,219.2,219.14,1.43995948]
[1758590529850,1.43995948,219.18,219.07,7.18]
[1758590530050,7.46,219.17,219.08,1.43995948]
[1758590530547,11.5628,219.17,219.08,1.43995948]
[1758590530951,11.5628,219.17,219.09,7.18]
[1758590531951,11.5628,219.17,219.1,1.43995948]
[1758590532153,7.46,219.17,219.12,1.43995948]
[1758590532449,1.43995948,219.19,219.13,7.18]
[1758590532650,7.46,219.18,219.1,8.61995948]
[1758590533851,11.5625,219.18,219.1,8.61995948]
[1758590534856,11.5625,219.18,219.1,7.18]
[1758590535046,11.5625,219.18,219.11,1.43995948]
[1758590535955,7.46,219.15,219.09,8.61995948]
[1758590536157,7.46,219.15,219.09,119.19995948]
[1758590536553,13.11245948,219.18,219.11,1.43995948]
[1758590537354,4.1029,219.16,219.11,1.43995948]
[1758590537553,11.6729,219.16,219.11,8.61995948]
[1758590537854,4.1033,219.14,219.09,112.54]
[1758590538156,7.57,219.13,219.1,7.18]
[1758590538353,7.57,219.17,219.09,121.15995948]
[1758590538555,4.1031,219.15,219.09,121.15995948]
[1758590539951,7.57,219.12,219.09,7.18]
[1758590540265,11.6735,219.13,219.07,58.9]
[1758590540457,11.6735,219.13,219.07,66.08]
[1758590542151,11.6735,219.13,219.07,7.18]
[1758590544762,7.57,219.13,219.07,7.18]
[1758590550362,7.57,219.16,219.09,7.18]
[1758590552365,4.1022,219.2,219.09,7.18]
[1758590552574,11.2322,219.2,219.09,7.18]
[1758590552863,11.2322,219.2,219.11,7.09]
[1758590553063,11.2322,219.2,219.12,112.5]
[1758590554568,4.1025,219.18,219.12,112.5]
[1758590554769,11.2325,219.18,219.12,112.5]
[1758590555670,7.13,219.18,219.12,112.5]
[1758590556368,7.13,219.18,219.11,7.09]
[1758590556570,7.13,219.18,219.12,112.48]
[1758590558474,4.1027,219.17,219.11,7.09]
[1758590558674,7.13,219.16,219.12,119.57]
[1758590558875,4.1027,219.17,219.12,119.57]
[1758590559072,7.13,219.16,219.13,7.09]
[1758590560278,7.13,219.18,219.12,119.57]
[1758590560964,11.2327,219.18,219.12,7.09]
[1758590561167,7.13,219.18,219.12,119.57]
[1758590562788,4.1029,219.17,219.12,112.48]
[1758590563077,4.1029,219.17,219.13,7.09]
[1758590563078,11.2329,219.17,219.13,7.09]
[1758590564077,11.2329,219.17,219.12,112.48]
[1758590564781,7.13,219.16,219.13,7.09]
[1758590564966,7.13,219.16,219.12,112.48]
[1758590565367,7.13,219.16,219.13,7.09]
[1758590565869,7.13,219.16,219.11,112.46]
[1758590566073,2.24888344,219.19,219.11,119.55]
[1758590566074,7.13,219.18,219.11,119.55]
[1758590567381,4.1027,219.17,219.11,119.55]
[1758590572785,7.13,219.17,219.05,4.1048]
[1758590572980,7.13,219.17,219.07,7.09]
[1758590573784,4.1034,219.14,219.07,7.09]
[1758590574587,4.1037,219.12,219.07,7.09]
[1758590574780,4.1037,219.12,219.06,112.44]
[1758590575390,11.2332,219.15,219.07,7.09]
[1758590576483,4.1035,219.13,219.07,7.09]
[1758590576978,4.104,219.11,219.05,112.42]
[1758590577877,4.104,219.11,219.06,7.09]
[1758590578688,4.104,219.11,219.05,112.42]
[1758590579091,4.104,219.11,219.06,7.09]
[1758590579285,4.104,219.11,219.05,112.42]
[1758590579783,4.104,219.11,219.06,7.09]
[1758590579983,4.104,219.11,219.05,112.42]
[1758590580190,4.104,219.11,219.06,7.09]
[1758590580394,4.1042,219.09,219.01,344.96]
[1758590580687,11.6842,219.09,219.02,119.6]
[1758590581083,4.1047,219.07,219.02,7.18]
[1758590581285,4.1047,219.07,219.03,112.42]
[1758590581480,11.6847,219.07,219.03,119.6]
[1758590581682,11.6847,219.07,219.04,7.18]
[1758590582490,7.58,219.06,219.04,7.18]
[1758590582887,7.58,219.06,219.03,24.22]
[1758590583084,7.58,219.05,218.98,7.18]
[1758590583390,7.58,219.05,218.98,42.88]
[1758590583895,4.1053,219.03,218.98,88.0]
[1758590584094,7.58,219.02,218.98,95.18]
[1758590584393,7.58,219.02,218.99,7.18]
[1758590584793,4.1058,219.01,218.99,7.18]
[1758590584991,11.6858,219.01,218.96,36.26]
[1758590585195,11.6858,219.01,218.97,7.18]
[1758590585790,4.1061,218.99,218.93,7.18]
[1758590585997,4.1061,218.99,218.93,115.24]
[1758590586694,4.1061,218.99,218.93,7.18]
[1758590587989,7.58,218.98,218.93,7.18]
[1758590588190,11.6861,218.99,218.92,119.62]
[1758590589494,4.1065,218.97,218.92,7.18]
[1758590589698,7.58,218.98,218.88,7.18]
[1758590589898,7.58,218.98,218.89,112.44]
[1758590590897,4.1069,218.95,218.89,112.44]
[1758590592809,11.6863,218.98,218.9,7.18]
[1758590592999,7.58,218.98,218.9,7.18]
[1758590593796,4.1066,218.96,218.9,7.18]
[1758590594898,7.58,218.95,218.9,7.18]
[1758590595795,7.58,218.95,218.89,112.46]
[1758590596199,7.58,218.95,218.9,7.18]
[1758590596403,7.58,218.95,218.89,112.46]
[1758590597098,7.58,218.95,218.9,7.17]
[1758590597300,7.61,218.95,218.83,7.17]
[1758590597502,7.61,218.95,218.84,29.68]
[1758590597697,7.61,218.95,218.85,7.17]
[1758590598096,11.717,218.95,218.85,7.17]
[1758590598300,7.61,218.95,218.85,7.17]
[1758590599405,7.61,219.01,218.88,2.24888344]
[1758590599595,7.61,218.99,218.89,7.17]
[1758590600495,4.1071,218.94,218.89,7.17]
[1758590600703,7.61,218.93,218.89,7.17]
[1758590600902,7.61,218.93,218.87,54.88]
[1758590601104,7.61,218.93,218.87,62.05]
[1758590601409,4.1074,218.92,218.86,112.61]
[1758590602605,4.1074,218.92,218.86,114.05214029]
[1758590602811,7.61,218.94,218.88,8.61214029]
[1758590603708,4.1074,218.92,218.89,7.17]
[1758590605014,4.1074,218.92,218.88,1.44214029]